fUSD/lending_fUSD_20260217
["ID","MTS","AMOUNT","RATE_DAILY","PERIOD"]
[405784211,1771306241625,-500.0,0.00013698,2]
[405784212,1771306241637,-500.0,0.00013698,2]
[405784213,1771306241648,-500.0,0.00013698,2]
[405784214,1771306241660,-154.45149982,0.00013698,2]
[405784215,1771306241673,-679.08,0.00013698,2]
[405784216,1771306241685,-679.08,0.00013698,2]
[405784217,1771306241696,-679.08,0.00013698,2]
[405784218,1771306241706,-679.08,0.00013698,2]
[405784219,1771306241721,-679.08,0.00013698,2]
[405784220,1771306241733,-679.08,0.00013698,2]
[405784221,1771306241745,-679.08,0.00013698,2]
[405784222,1771306241759,-679.08,0.00013698,2]
[405784223,1771306241770,-679.08,0.00013698,2]
[405784224,1771306241780,-500.0,0.00013698,2]
[405784225,1771306241791,-500.0,0.00013698,2]
[405784226,1771306241801,-500.0,0.00013698,2]
[405784227,1771306241813,-500.0,0.00013698,2]
[405784228,1771306241825,-500.0,0.00013698,2]
[405784229,1771306241836,-500.0,0.00013698,2]
[405784230,1771306241846,-500.0,0.00013698,2]
[405784231,1771306241857,-500.0,0.00013698,2]
[405784232,1771306241867,-500.0,0.00013698,2]
[405784233,1771306241878,-500.0,0.00013698,2]
[405784234,1771306241889,-500.0,0.00013698,2]
[405784235,1771306241899,-500.0,0.00013698,2]
[405784236,1771306241913,-500.0,0.00013698,2]
[405784237,1771306241924,-500.0,0.00013698,2]
[405784238,1771306241936,-500.0,0.00013698,2]
[405784239,1771306241947,-1125.16,0.00013698,2]
[405784240,1771306241957,-1125.16,0.00013698,2]
[405784241,1771306241971,-1125.16,0.00013698,2]
[405784242,1771306241981,-1125.16,0.00013698,2]
[405784243,1771306241991,-1125.16,0.00013698,2]
[405784244,1771306242002,-1125.16,0.00013698,2]
[405784245,1771306242014,-1125.16,0.00013698,2]
[405784246,1771306242024,-1125.16,0.00013698,2]
[405784247,1771306242035,-1125.16,0.00013698,2]
[405784248,1771306242046,-1125.16,0.00013698,2]
[405784249,1771306242056,-1125.16,0.00013698,2]
[405784250,1771306242066,-1125.16,0.00013698,2]
[405784251,1771306242078,-1125.16,0.00013698,2]
[405784252,1771306242089,-1125.16,0.00013698,2]
[405784253,1771306242099,-1125.16,0.00013698,2]
[405784254,1771306242110,-1125.16,0.00013698,2]
[405784255,1771306242121,-1125.16,0.00013698,2]
[405784256,1771306242131,-1125.16,0.00013698,2]
[405784257,1771306242142,-1125.16,0.00013698,2]
[405784258,1771306242152,-1125.16,0.00013698,2]
[405784259,1771306242163,-1125.16,0.00013698,2]
[405784260,1771306242174,-1125.16,0.00013698,2]
[405784261,1771306242188,-1125.16,0.00013698,2]
[405784262,1771306242199,-1125.29508189,0.00013698,2]
[405784263,1771306242210,-456.05800986,0.00013698,2]
[405784264,1771306242220,-500.0,0.00013698,2]
[405784265,1771306242231,-500.0,0.00013698,2]
[405784266,1771306242242,-500.0,0.00013698,2]
[405784267,1771306242252,-500.0,0.00013698,2]
[405784268,1771306242266,-500.0,0.00013698,2]
[405784269,1771306242281,-500.0,0.00013698,2]
[405784270,1771306242291,-500.0,0.00013698,2]
[405784271,1771306242302,-500.0,0.00013698,2]
[405784272,1771306242313,-500.0,0.00013698,2]
[405784273,1771306242324,-500.0,0.00013698,2]
[405784274,1771306242336,-430.55674509,0.00013698,2]
[405784275,1771306242746,-503.24510855,0.00013698,2]
[405784276,1771306242757,-500.0,0.00013698,2]
[405784277,1771306242767,-500.0,0.00013698,2]
[405784278,1771306242777,-500.0,0.00013698,2]
[405784279,1771306242787,-500.0,0.00013698,2]
[405784280,1771306242797,-500.0,0.00013698,2]
[405784281,1771306242806,-500.0,0.00013698,2]
[405784282,1771306242815,-500.0,0.00013698,2]
[405784283,1771306242825,-500.0,0.00013698,2]
[405784284,1771306242835,-500.0,0.00013698,2]
[405784285,1771306242844,-500.0,0.00013698,2]
[405784288,1771306242854,-500.0,0.00013698,2]
[405784289,1771306242863,-500.0,0.00013698,2]
[405784290,1771306242872,-500.0,0.00013698,2]
[405784291,1771306242882,-500.0,0.00013698,2]
[405784292,1771306242891,-500.0,0.00013698,2]
[405784293,1771306242900,-500.0,0.00013698,2]
[405784294,1771306242910,-500.0,0.00013698,2]
[405784295,1771306242936,-500.0,0.00013698,2]
[405784296,1771306242948,-205.75338066,0.00013698,2]
[405784297,1771306242960,-500.0,0.00013698,2]
[405784298,1771306242975,-500.0,0.00013698,2]
[405784299,1771306242986,-400.27334963,0.00013698,2]
[405784300,1771306242997,-915.21,0.00013698,2]
[405784301,1771306243011,-915.21,0.00013698,2]
[405784302,1771306243022,-915.21,0.00013698,2]
[405784303,1771306243035,-915.21,0.00013698,2]
[405784304,1771306243048,-915.21,0.00013698,2]
[405784305,1771306243059,-915.21,0.00013698,2]
[405784306,1771306243071,-915.21,0.00013698,2]
[405784307,1771306243083,-915.21,0.00013698,2]
[405784308,1771306243094,-915.21,0.00013698,2]
[405784309,1771306243105,-915.21,0.00013698,2]
[405784310,1771306243116,-915.21,0.00013698,2]
[405784311,1771306243127,-915.21,0.00013698,2]
[405784312,1771306243138,-915.21,0.00013698,2]
[405784314,1771306243149,-915.21,0.00013698,2]
[405784316,1771306243160,-915.21,0.00013698,2]
[405784318,1771306243171,-915.21,0.00013698,2]
[405784319,1771306243183,-500.0,0.00013698,2]
[405784320,1771306243193,-500.0,0.00013698,2]
[405784321,1771306243204,-500.0,0.00013698,2]
[405784322,1771306243214,-307.44205355,0.00013698,2]
[405784323,1771306243225,-500.0,0.00013698,2]
[405784324,1771306243236,-500.0,0.00013698,2]
[405784325,1771306243246,-500.0,0.00013698,2]
[405784326,1771306243256,-500.0,0.00013698,2]
[405784327,1771306243267,-500.0,0.00013698,2]
[405784328,1771306243278,-500.0,0.00013698,2]
[405784329,1771306243288,-500.0,0.00013698,2]
[405784330,1771306243299,-500.0,0.00013698,2]
[405784331,1771306243309,-500.0,0.00013698,2]
[405784332,1771306243320,-500.0,0.00013698,2]
[405784333,1771306243331,-500.0,0.00013698,2]
[405784334,1771306243341,-500.0,0.00013698,2]
[405784335,1771306243352,-500.0,0.00013698,2]
[405784336,1771306243363,-500.0,0.00013698,2]
[405784337,1771306243373,-500.0,0.00013698,2]
[405784338,1771306243383,-500.0,0.00013698,2]
[405784339,1771306243393,-500.0,0.00013698,2]
[405784340,1771306243404,-500.0,0.00013698,2]
[405784341,1771306243414,-500.0,0.00013698,2]
[405784342,1771306243425,-500.0,0.00013698,2]
[405784343,1771306243435,-500.0,0.00013698,2]
[405784344,1771306243446,-500.0,0.00013698,2]
[405784345,1771306243461,-500.0,0.00013698,2]
[405784346,1771306243472,-500.0,0.00013698,2]
[405784347,1771306243484,-500.0,0.00013698,2]
[405784348,1771306243495,-500.0,0.00013698,2]
[405784349,1771306243506,-500.0,0.00013698,2]
[405784350,1771306243517,-500.0,0.00013698,2]
[405784351,1771306243528,-500.0,0.00013698,2]
[405784352,1771306243539,-500.0,0.00013698,2]
[405784353,1771306243550,-500.0,0.00013698,2]
[405784354,1771306243561,-500.0,0.00013698,2]
[405784355,1771306243572,-500.0,0.00013698,2]
[405784356,1771306243583,-500.0,0.00013698,2]
[405784357,1771306243594,-500.0,0.00013698,2]
[405784358,1771306243605,-500.0,0.00013698,2]
[405784359,1771306243616,-500.0,0.00013698,2]
[405784360,1771306243627,-500.0,0.00013698,2]
[405784361,1771306243637,-500.0,0.00013698,2]
[405784362,1771306243649,-500.0,0.00013698,2]
[405784363,1771306243660,-500.0,0.00013698,2]
[405784364,1771306243671,-500.0,0.00013698,2]
[405784365,1771306243682,-500.0,0.00013698,2]
[405784366,1771306243693,-500.0,0.00013698,2]
[405784367,1771306243703,-500.0,0.00013698,2]
[405784368,1771306243714,-500.0,0.00013698,2]
[405784369,1771306243725,-500.0,0.00013698,2]
[405784370,1771306243735,-500.0,0.00013698,2]
[405784371,1771306243746,-500.0,0.00013698,2]
[405784372,1771306243756,-522.2154278,0.00013698,2]
[405784373,1771306243766,-500.0,0.00013698,2]
[405784374,1771306243777,-500.0,0.00013698,2]
[405784375,1771306243787,-500.0,0.00013698,2]
[405784376,1771306243798,-500.0,0.00013698,2]
[405784377,1771306243808,-500.0,0.00013698,2]
[405784378,1771306243819,-500.0,0.00013698,2]
[405784379,1771306243829,-500.0,0.00013698,2]
[405784380,1771306243840,-500.0,0.00013698,2]
[405784381,1771306243851,-500.0,0.00013698,2]
[405784382,1771306243861,-500.0,0.00013698,2]
[405784383,1771306243872,-500.0,0.00013698,2]
[405784384,1771306243884,-500.0,0.00013698,2]
[405784385,1771306243897,-500.0,0.00013698,2]
[405784386,1771306243910,-500.0,0.00013698,2]
[405784387,1771306243922,-500.0,0.00013698,2]
[405784388,1771306243936,-500.0,0.00013698,2]
[405784389,1771306243950,-500.0,0.00013698,2]
[405784390,1771306243961,-500.0,0.00013698,2]
[405784391,1771306243974,-500.0,0.00013698,2]
[405784392,1771306243984,-500.0,0.00013698,2]
[405784393,1771306244001,-500.0,0.00013698,2]
[405784394,1771306244017,-500.0,0.00013698,2]
[405784395,1771306244027,-500.0,0.00013698,2]
[405784396,1771306244040,-500.0,0.00013698,2]
[405784397,1771306244050,-500.0,0.00013698,2]
[405784398,1771306244061,-500.0,0.00013698,2]
[405784399,1771306244071,-500.0,0.00013698,2]
[405784400,1771306244082,-500.0,0.00013698,2]
[405784401,1771306244092,-500.0,0.00013698,2]
[405784402,1771306244103,-500.0,0.00013698,2]
[405784403,1771306244113,-535.55684817,0.00013698,2]
[405784404,1771306244124,-500.0,0.00013698,2]
[405784405,1771306244134,-500.0,0.00013698,2]
[405784406,1771306244146,-500.0,0.00013698,2]
[405784407,1771306244156,-639.90682726,0.00013698,2]
[405784408,1771306244166,-506.79858148,0.00013698,2]
[405784409,1771306244176,-500.0,0.00013698,2]
[405784410,1771306244187,-500.0,0.00013698,2]
[405784411,1771306244197,-500.0,0.00013698,2]
[405784412,1771306244208,-500.0,0.00013698,2]
[405784413,1771306244218,-500.0,0.00013698,2]
[405784414,1771306244228,-500.0,0.00013698,2]
[405784415,1771306244239,-500.0,0.00013698,2]
[405784416,1771306244249,-349.69131006,0.00013698,2]
[405784417,1771306244259,-712.99,0.00013699,2]
[405784418,1771306244269,-654.39,0.00013699,2]
[405784419,1771306244280,-183.74,0.00013699,2]
[405784420,1771306244290,-745.65223616,0.00013705,2]
[405784421,1771306244301,-151.0,0.00013705,2]
[405784422,1771306244312,-3000.0,0.00013712,2]
[405784423,1771306244322,-773.2413689,0.0001376,2]
[405784424,1771306244333,-151.0,0.0001376,2]
[405784425,1771306244343,-915.21,0.00013799,2]
[405784426,1771306244353,-500.0,0.00013799,2]
[405784427,1771306244364,-28698.0,0.00013814,2]
[405784428,1771306244374,-801.85129955,0.00013815,2]
[405784429,1771306244384,-151.0,0.00013815,2]
[405784430,1771306244394,-831.51979763,0.0001387,2]
[405784431,1771306244404,-151.0,0.0001387,2]
[405784432,1771306244414,-862.28603014,0.00013925,2]
[405784433,1771306244424,-151.0,0.00013925,2]
[405784434,1771306244435,-894.19061326,0.0001398,2]
[405784435,1771306244446,-151.0,0.0001398,2]
[405784436,1771306244456,-927.27566595,0.00014035,2]
[405784437,1771306244467,-151.0,0.00014035,2]
[405784438,1771306244476,-961.58486559,0.0001409,2]
[405784439,1771306244487,-151.0,0.0001409,2]
[405784440,1771306244497,-500.0,0.00014122,2]
[405784441,1771306244508,-500.0,0.00014122,2]
[405784442,1771306244518,-531.0,0.00014122,2]
[405784443,1771306244529,-23617.03509136,0.00014123,2]
[405784444,1771306244540,-217.15233878,0.00014143,2]
[405784445,1771306244551,-200.0,0.00014143,2]
[405784446,1771306244561,-997.16350561,0.00014145,2]
[405784447,1771306244571,-151.0,0.00014145,2]
[405784448,1771306244583,-151.0,0.000142,2]
[405784449,1771306244593,-151.0,0.00014255,2]
[405784450,1771306244603,-846.3153877,0.0001426,2]
[405784451,1771306244613,-151.0,0.0001431,2]
[405784452,1771306244624,-267.05598539,0.00014365,2]
[405784453,1771306244634,-654.39,0.00014384,2]
[405784454,1771306244645,-7658.84032483,0.0001439,2]
[405784455,1771306244655,-152.72,0.00014457,2]
[405784456,1771306244665,-4193.06,0.00014548,2]
[405784457,1771306244675,-151.0,0.00014634,2]
[405784458,1771306244688,-151.0,0.00014634,2]
[405784459,1771306244698,-151.0,0.00014634,2]
[405784460,1771306244708,-297.18074641,0.00014691,2]
[405784461,1771306244718,-9035.0,0.00014702,2]
[405784462,1771306244729,-2094.0,0.00014702,2]
[405784463,1771306244739,-500.0,0.0001496,2]
[405784464,1771306244749,-160.32510575,0.00014964,2]
[405784465,1771306244759,-168.3888056,0.00014964,2]
[405784466,1771306244769,-250.0,0.00015,2]
[405784467,1771306244779,-2055.50045313,0.00015,2]
[405784468,1771306244789,-8002.23365242,0.00015,2]
[405784469,1771306244800,-418.83903334,0.00015,2]
[405784470,1771306244810,-654.39,0.00015068,2]
[405784471,1771306244820,-160.0,0.00015068,4]
[405784472,1771306244831,-23617.03509136,0.00015077,2]
[405784473,1771306244841,-5300.13656815,0.00015129,2]
[405784474,1771306244851,-160.0,0.00015256,4]
[405784475,1771306244861,-1517.64,0.000153,2]
[405784476,1771306244871,-509.61038486,0.000154,2]
[405784477,1771306244882,-654.39,0.00015753,2]
[405784478,1771306244891,-160.0,0.00015787,2]
[405784479,1771306244901,-173.57638878,0.00015787,2]
[405784480,1771306244911,-1000.0,0.00015792,2]
[405784481,1771306244921,-1000.0,0.00015792,2]
[405784483,1771306244931,-1000.0,0.00015792,2]
[405784485,1771306244941,-1000.0,0.00015792,2]
[405784487,1771306244951,-1000.0,0.00015792,2]
[405784489,1771306244964,-1000.0,0.00015792,2]
[405784491,1771306244975,-2245.73805852,0.00015807,2]
[405784493,1771306244985,-5000.0,0.0001596,2]
[405784495,1771306244995,-303.26122484,0.00016,2]
[405784498,1771306245007,-23617.03509136,0.00016031,2]
[405784500,1771306245016,-275.595,0.00016096,2]
[405784502,1771306245027,-3234.587,0.00016096,2]
[405784504,1771306245038,-7910.59,0.00016116,2]
[405784506,1771306245048,-10875.0,0.00016172,2]
[405784508,1771306245058,-5000.00921476,0.000162,5]
[405784510,1771306245068,-168.19115038,0.00016333,2]
[405784512,1771306245078,-599.60298507,0.00016334,2]
[405784514,1771306245089,-747.8093786,0.00016334,2]
[405784515,1771306245099,-200.0,0.0001634,2]
[405784516,1771306245109,-654.39,0.00016438,2]
[405784517,1771306245119,-550.98049433,0.00016497,7]
[405784518,1771306245128,-5300.13656815,0.00016514,2]
[405784519,1771306245138,-160.57318335,0.00016534,2]
[405784520,1771306245149,-9917.64356668,0.00016557,2]
[405784521,1771306245158,-315.90732778,0.0001664,2]
[405784522,1771306245168,-159.42,0.00016712,2]
[405784523,1771306245178,-1634.14,0.00016734,2]
[405784524,1771306245188,-915.21,0.00016855,2]
[405784525,1771306245198,-286.9609652,0.00016855,2]
[405784526,1771306245208,-500.0,0.00016858,2]
[405784527,1771306245219,-500.0,0.00016858,2]
[405784528,1771306245228,-500.0,0.00016858,2]
[405784529,1771306245238,-500.0,0.00016858,2]
[405784530,1771306245248,-500.0,0.00016858,2]
[405784531,1771306245258,-500.0,0.00016858,2]
[405784532,1771306245268,-88293.23,0.00016982,2]
[405784533,1771306245279,-23617.03509136,0.00016985,2]
[405784534,1771306245289,-300.0,0.00017,2]
[405784535,1771306245299,-256950.30596212,0.00017,2]
[405784536,1771306246062,-465146.21926592,0.00017,2]
[405784537,1771306246072,-241.70774661,0.00017085,2]
[405784538,1771306246081,-3701.0,0.000172,2]
[405784539,1771306246091,-350.0,0.0001726,2]
[405784540,1771306246100,-502.0,0.000173,2]
[405784541,1771306246109,-1008.09246251,0.0001764,2]
[405784542,1771306246119,-1063.22072692,0.0001764,2]
[405784543,1771306246128,-1066.36787657,0.0001764,2]
[405784544,1771306246138,-1018.91907812,0.0001764,2]
[405784545,1771306246147,-1108.77996521,0.0001764,2]
[405784546,1771306246156,-1024.82679103,0.0001764,2]
[405784547,1771306246166,-1088.00972222,0.0001764,2]
[405784548,1771306246176,-1147.29638524,0.0001764,2]
[405784549,1771306246185,-1120.80483045,0.0001764,2]
[405784550,1771306246194,-1045.76309855,0.0001764,2]
[405784551,1771306246203,-1101.72459949,0.0001764,2]
[405784552,1771306246212,-1041.16260688,0.0001764,2]
[405784553,1771306246222,-1101.78564326,0.0001764,2]
[405784554,1771306246236,-1451.62057868,0.0001764,2]
[405784555,1771306246245,-5016.38407619,0.0001764,2]
[405784556,1771306246255,-306.51422453,0.00017698,2]
[405784557,1771306246263,-784.32813885,0.000177,2]
[405784558,1771306246272,-403.0,0.000177,5]
[405784559,1771306246282,-444.64,0.00017808,2]
[405784560,1771306246292,-500.0,0.00017808,2]
[405784561,1771306246302,-500.0,0.00017808,2]
[405784562,1771306246311,-500.0,0.00017808,2]
[405784564,1771306246321,-500.0,0.00017808,2]
[405784565,1771306246331,-500.0,0.00017808,2]
[405784566,1771306246340,-500.0,0.00017808,2]
[405784567,1771306246350,-500.0,0.00017808,2]
[405784568,1771306246359,-500.0,0.00017808,2]
[405784569,1771306246369,-595.71508911,0.00017808,2]
[405784570,1771306246379,-500.0,0.00017808,2]
[405784571,1771306246399,-250.0,0.00017808,20]
[405784572,1771306246416,-250.0,0.00017808,20]
[405784573,1771306246426,-250.0,0.00017808,20]
[405784574,1771306246437,-250.0,0.00017808,20]
[405784575,1771306246447,-250.0,0.00017808,20]
[405784576,1771306246457,-250.0,0.00017808,20]
[405784577,1771306246467,-250.0,0.00017808,20]
[405784578,1771306246477,-250.0,0.00017808,20]
[405784579,1771306246487,-250.0,0.00017808,20]
[405784580,1771306246497,-250.0,0.00017808,20]
[405784581,1771306246507,-250.0,0.00017808,20]
[405784582,1771306246517,-250.0,0.00017808,20]
[405784583,1771306246527,-250.0,0.00017808,20]
[405784584,1771306246536,-250.0,0.00017808,20]
[405784585,1771306246546,-250.0,0.00017808,20]
[405784586,1771306246555,-211.316222,0.00017808,20]
[405784587,1771306246565,-800.0,0.00017808,2]
[405784588,1771306246575,-260.09005,0.0001782,2]
[405784589,1771306246585,-260.09005,0.0001782,2]
[405784590,1771306246594,-200.0,0.00017855,2]
[405784591,1771306246604,-200.0,0.00017856,2]
[405784592,1771306246613,-200.0,0.00017856,2]
[405784593,1771306246627,-1004.12697823,0.0001786,2]
[405784594,1771306246637,-160.0,0.00017899,3]
[405784595,1771306246647,-915.21,0.00017899,2]
[405784596,1771306246657,-25000.0,0.000179,3]
[405784597,1771306246667,-1488.83065607,0.000179,2]
[405784598,1771306246677,-5300.13656815,0.000179,2]
[405784599,1771306246688,-2555.4951848,0.000179,5]
[405784600,1771306246698,-2450.91604566,0.000179,2]
[405784601,1771306246708,-763.92788936,0.0001793,2]
[405784602,1771306246718,-151.0,0.00017937,2]
[405784603,1771306246728,-915.21,0.00017939,2]
[405784604,1771306246738,-915.21,0.00017939,2]
[405784605,1771306246747,-915.21,0.00017939,2]
[405784606,1771306246756,-915.21,0.00017939,2]
[405784607,1771306246766,-915.2263384,0.00017939,2]
[405784608,1771306246776,-48650.3663579,0.0001794,2]
[405784609,1771306246785,-458635.0025098,0.0001794,2]
[405784610,1771306246794,-20499.10730416,0.0001794,4]
[405784611,1771306246804,-131604.71941823,0.0001794,2]
[405784612,1771306246813,-92123.30359276,0.0001794,4]
[405784613,1771306246823,-3059.305195,0.0001796,2]
[405784614,1771306246832,-151.0,0.00017997,2]
[405784615,1771306246841,-500.0,0.00017999,2]
[405784616,1771306246851,-538.27974596,0.00017999,2]
[405784617,1771306246861,-161.76553767,0.00017999,2]
[405784618,1771306246870,-500.0,0.00017999,2]
[405784619,1771306246880,-500.0,0.00017999,2]
[405784620,1771306246890,-500.0,0.00017999,2]
[405784621,1771306246900,-500.0,0.00017999,2]
[405784622,1771306246909,-500.0,0.00017999,2]
[405784623,1771306246919,-500.0,0.00017999,2]
[405784624,1771306246928,-500.0,0.00017999,2]
[405784625,1771306246939,-388.47570654,0.00017999,2]
[405784626,1771306246948,-500.0,0.00017999,2]
[405784627,1771306246958,-500.0,0.00017999,2]
[405784628,1771306246971,-500.0,0.00017999,2]
[405784629,1771306246980,-508.20125622,0.00017999,2]
[405784630,1771306246994,-500.0,0.00017999,2]
[405784631,1771306247006,-500.0,0.00017999,2]
[405784632,1771306247015,-197.6651859,0.00017999,2]
[405784633,1771306247024,-500.0,0.00017999,2]
[405784634,1771306247035,-500.0,0.00017999,2]
[405784635,1771306247044,-505.24249427,0.00017999,2]
[405784636,1771306247054,-666.0,0.00017999,2]
[405784637,1771306247063,-300.0,0.00017999,2]
[405784638,1771306247073,-666.0,0.00017999,2]
[405784639,1771306247083,-4938862.95192808,0.00018,2]
[405784640,1771306247093,-151.82749142,0.00018,2]
[405784641,1771306247105,-772.26,0.00018,7]
[405784642,1771306247117,-205.83646081,0.00018,2]
[405784643,1771306247128,-200.0,0.00018,2]
[405784644,1771306247139,-200.0,0.00018,2]
[405784645,1771306247150,-302.0,0.00018,2]
[405784646,1771306247160,-2227285.78282731,0.00018,2]
[405784647,1771306247175,-1059.80161734,0.00018,2]
[405784648,1771306247197,-1091.00000001,0.00018,2]
[405784649,1771306247409,-2255.445,0.0001315,2]
[405784650,1771306247654,-4650.25485136,0.0001315,2]
[405784651,1771306247665,-15835.52696008,0.00018,2]
[405784653,1771306358681,500.0,0.000203,120]
[405784654,1771306380044,-3823.981012,7.945e-05,2]
[405784655,1771306380078,-421.487776,8.2e-05,2]
[405784656,1771306380122,-1509.072424,8.2e-05,2]
[405784657,1771306380216,-1509.5615,8.2e-05,2]
[405784658,1771306380257,-6980.887,8.2e-05,2]
[405784659,1771306380310,-10000.01,8.2e-05,2]
[405784660,1771306386142,-150.0,8.199e-05,2]
[405784661,1771306386199,-9700.01,8.2e-05,2]
[405784662,1771306405433,9262.54956464,8.1e-05,3]
[405784663,1771306405490,16096.96173812,8.1e-05,3]
[405784664,1771306405538,3824.50973516,8.1e-05,3]
[405784665,1771306405564,7716.17722064,8.1e-05,3]
[405784666,1771306405651,16096.96173812,8.1e-05,3]
[405784667,1771306405691,13818.82434696,8.1e-05,3]
[405784668,1771306405763,23047.060576,8.1e-05,3]
[405784669,1771306466112,-300.0,8.199e-05,2]
[405784670,1771306466148,-9400.01,8.2e-05,2]
[405784671,1771306466303,-10000.01,8.2e-05,2]
[405784672,1771306466416,-10000.01,8.2e-05,2]
[405784673,1771306478042,-10000.01,8.2e-05,2]
[405784674,1771306478180,-10000.01,8.2e-05,2]
[405784675,1771306478288,-10000.01,8.2e-05,2]
[405784676,1771306531812,2433.65,7.9e-05,2]
[405784677,1771306538967,775.33,7.9e-05,2]
[405784678,1771306582476,358.66575523,8.1e-05,3]
[405784679,1771306582533,293.9074174,8.1e-05,3]
[405784680,1771306582576,380.25186784,8.1e-05,3]
[405784681,1771306582632,401.83798045,8.1e-05,3]
[405784692,1771306759913,1791.03,7.137e-05,2]
[405784693,1771306759937,4304.01,7.137e-05,2]
[405784694,1771306760157,696.0,7.231e-05,2]
[405784695,1771306760510,452.84249292,8e-05,3]
[405784696,1771306760670,589.12161474,8e-05,3]
[405784697,1771306760719,634.54798868,8e-05,3]
[405784698,1771306761536,679.97436262,8e-05,3]
[405784699,1771306775286,1460.46954007,7.223e-05,2]
[405784700,1771306781494,-5000.01,7.231e-05,2]
[405784701,1771306781536,-399.03,7.231e-05,2]
[405784705,1771306785013,-3904.97,7.325e-05,2]
[405784706,1771306785047,-729.60045993,7.325e-05,2]
[405784707,1771306785135,-1460.46954007,7.325e-05,2]
[405784708,1771306800215,-3904.97,7.419e-05,2]
[405784709,1771306800279,-2190.07,7.419e-05,2]
[405784715,1771306815345,-300.0,7.512e-05,2]
[405784716,1771306815377,-1200.0,7.512e-05,2]
[405784717,1771306815407,-214.0,7.512e-05,2]
[405784718,1771306830394,-3904.97,7.513e-05,2]
[405784719,1771306830420,-2190.07,7.513e-05,2]
[405784720,1771306859976,255.63,7.5e-05,2]
[405784722,1771306882780,4744.38,7.244e-05,2]
[405784723,1771306882802,5000.01,7.244e-05,2]
[405784724,1771306882824,3713.59,7.244e-05,2]
[405784726,1771306946229,721.75041964,8e-05,3]
[405784727,1771306946278,979.03810848,8e-05,3]
[405784728,1771306946338,1064.80067143,8e-05,3]
[405784729,1771306946430,1150.56323437,8e-05,3]
[405784732,1771306960886,500.0,7.159e-05,2]
[405784733,1771306999331,160.0,7.3e-05,2]
[405784734,1771307018265,4840.01,7.524e-05,2]
[405784735,1771307018292,5000.01,7.524e-05,2]
[405784736,1771307018317,5000.01,7.524e-05,2]
[405784737,1771307018342,5000.01,7.524e-05,2]
[405784738,1771307018366,5000.01,7.524e-05,2]
[405784739,1771307023291,-786.42,7.524e-05,2]
[405784740,1771307023392,-5000.01,7.524e-05,2]
[405784741,1771307023510,-5000.01,7.524e-05,2]
[405784742,1771307026193,-5000.01,7.524e-05,2]
[405784743,1771307026405,-5000.01,7.524e-05,2]
[405784744,1771307026512,-5000.01,7.524e-05,2]
[405784745,1771307026630,-5000.01,7.524e-05,2]
[405784746,1771307026740,-5000.01,7.524e-05,2]
[405784747,1771307029120,-5000.01,7.524e-05,2]
[405784748,1771307029213,-5000.01,7.524e-05,2]
[405784749,1771307029319,-5000.01,7.524e-05,2]
[405784750,1771307029439,-5000.01,7.524e-05,2]
[405784751,1771307029541,-5000.01,7.524e-05,2]
[405784752,1771307078615,-151.0,7.521e-05,2]
[405784753,1771307087777,1500.0,7.458e-05,2]
[405784754,1771307091780,-500.0,7.523e-05,2]
[405784755,1771307091810,-305.28712047,7.523e-05,2]
[405784756,1771307091845,-532.20142976,7.523e-05,2]